bitfinex-derivatives/quotes_SOLF0:USTF0_20250114
["timestamp","ask_amount","ask_price","bid_price","bid_amount"]
[1736860561358,191.92841257,186.47,186.25,4.3879]
[1736860561359,7.98291336,186.37,186.31,7.98291336]
[1736860561557,7.98291336,186.35,186.29,7.98291336]
[1736860561854,7.98291336,186.31,186.22,29.66589613]
[1736860562062,191.0,186.36,186.2,7.98291336]
[1736860562063,7.98291336,186.27,186.2,7.98291336]
[1736860562256,7.98291336,186.27,186.17,7.41647403]
[1736860562257,7.98291336,186.25,186.17,7.41647403]
[1736860562563,7.98291336,186.25,186.18,7.98291336]
[1736860564063,10.66891336,186.23,186.18,7.98291336]
[1736860564260,7.98291336,186.23,186.16,7.98291336]
[1736860564461,7.98291336,186.23,186.15,2.6871]
[1736860564763,7.98291336,186.21,186.15,10.67001336]
[1736860564966,7.98291336,186.23,186.17,7.98291336]
[1736860565163,2.6862,186.22,186.17,7.98291336]
[1736860565465,2.6862,186.22,186.15,15.15911548]
[1736860568766,2.6862,186.22,186.16,2.687]
[1736860570362,2.6859,186.24,186.18,2.6867]
[1736860571866,2.3806,186.26,186.15,12.47201548]
[1736860572169,5.0662,186.26,186.2,2.6864]
[1736860572561,2.6857,186.25,186.19,2.6866]
[1736860573468,2.3806,186.26,186.15,12.47201548]
[1736860573768,2.686,186.23,186.18,2.6867]
[1736860575157,2.6859,186.24,186.19,2.6866]
[1736860575465,191.0,186.25,186.12,12.47201548]
[1736860576062,12.47201548,186.18,185.96,5.64]
[1736860576259,10.2299,186.17,186.05,12.47201548]
[1736860576465,2.6876,186.13,186.08,2.6881]
[1736860579169,2.6874,186.14,186.09,2.688]
[1736860585380,10.6776427,186.14,186.09,2.688]
[1736860587082,10.6776427,186.14,186.07,7.9902427]
[1736860587275,10.6776427,186.14,186.1,2.6879]
[1736860589983,2.6874,186.14,186.1,2.6879]
[1736860590380,7.9902427,186.13,185.99,4.6222]
[1736860590580,7.9902427,186.11,186.07,2.6882]
[1736860590884,7.9902427,186.09,186.02,11.38725232]
[1736860591079,7.9902427,186.07,186.02,11.38725232]
[1736860591985,2.6887,186.05,186.02,14.07615232]
[1736860592188,7.9902427,186.07,186.02,14.07615232]
[1736860592682,7.9902427,186.07,186.02,11.38725232]
[1736860592883,2.6885,186.06,186.03,2.6889]
[1736860593088,5.64,186.08,186.03,7.9902427]
[1736860594093,5.64,186.08,186.06,2.6884]
[1736860594989,5.64,186.08,186.05,7.9902427]
[1736860595191,5.64,186.08,186.07,2.6883]
[1736860596389,2.6879,186.1,186.07,2.6883]
[1736860596690,5.64,186.1,186.07,2.6883]
[1736860597086,5.64,186.1,186.08,2.6881]
[1736860598590,5.64,186.1,186.06,2.6884]
[1736860599687,2.6881,186.09,186.05,2.6886]
[1736860600190,5.64,186.1,186.02,11.38725232]
[1736860600387,2.3218,186.09,186.04,2.6887]
[1736860600985,2.6883,186.07,186.03,2.6889]
[1736860601488,2.6883,186.07,186.02,11.38725232]
[1736860601685,2.6883,186.07,186.04,2.6888]
[1736860601885,2.6882,186.08,186.04,2.6888]
[1736860602098,6.7737,186.09,186.02,11.38725232]
[1736860602392,2.6883,186.07,186.03,2.6889]
[1736860605591,2.6882,186.08,186.04,2.6888]
[1736860607890,9.4618,186.09,186.05,2.6885]
[1736860608091,2.3218,186.09,186.02,11.38725232]
[1736860608296,5.64,186.08,186.02,11.38725232]
[1736860609002,5.64,186.08,186.03,2.6888]
[1736860609299,5.64,186.08,186.02,11.38725232]
[1736860609697,8.3283,186.08,186.04,2.6888]
[1736860612001,5.64,186.08,186.02,11.38725232]
[1736860612202,5.64,186.08,186.06,2.6884]
[1736860614610,5.64,186.08,186.07,2.6883]
[1736860618405,5.64,186.08,186.02,11.38725232]
[1736860618606,7.99391101,186.07,186.02,11.38725232]
[1736860618905,7.99391101,186.07,186.04,2.6887]
[1736860619706,8.3283,186.08,186.04,2.6887]
[1736860620210,5.64,186.08,186.06,2.6884]
[1736860620405,5.64,186.08,186.04,7.99391101]
[1736860620805,5.64,186.08,186.02,11.38725232]
[1736860621007,7.99391101,186.06,185.93,2.3706]
[1736860621208,7.99391101,186.04,185.97,7.99391101]
[1736860621510,7.99391101,186.04,185.93,2.3706]
[1736860621511,7.99391101,186.06,185.99,7.99391101]
[1736860621908,2.6887,186.05,186.03,2.6889]
[1736860623109,5.64,186.08,186.01,7.99391101]
[1736860623312,5.64,186.07,186.04,2.6887]
[1736860623813,5.64,186.07,186.05,2.6886]
[1736860624214,8.3283,186.07,186.03,2.6888]
[1736860624813,2.6886,186.06,186.02,2.689]
[1736860625207,2.6886,186.06,186.01,7.99391101]
[1736860625812,2.6886,186.06,186.03,2.6888]
[1736860627219,8.3284,186.07,186.03,10.68271101]
[1736860627415,5.64,186.07,186.04,2.6887]
[1736860627717,5.64,186.07,186.02,7.99391101]
[1736860628015,5.64,186.07,185.94,5.3802]
[1736860628221,5.64,186.07,186.01,2.6891]
[1736860628421,2.6886,186.05,186.01,7.99391101]
[1736860629416,2.6886,186.05,186.02,2.689]
[1736860632221,2.6886,186.05,186.01,7.99391101]
[1736860632416,5.64,186.07,185.94,5.3802]
[1736860632622,5.64,186.07,186.03,7.99391101]
[1736860632824,5.64,186.07,186.05,7.99391101]
[1736860633621,5.64,186.07,186.05,2.6886]
[1736860634017,5.64,186.07,186.03,7.99391101]
[1736860635119,5.64,186.07,186.06,2.6885]
[1736860635319,5.64,186.07,185.97,4.3469]
[1736860635519,5.64,186.07,186.02,7.99391101]
[1736860635721,5.64,186.07,185.93,41.46248737]
[1736860635917,7.99391101,186.06,185.99,7.99391101]
[1736860636414,2.6888,186.04,186.01,2.6891]
[1736860637215,2.6886,186.06,186.03,2.6889]
[1736860640329,11.87357097,186.07,186.03,7.99391101]
[1736860640528,5.64,186.07,186.01,7.99391101]
[1736860640823,5.64,186.07,186.02,2.6889]
[1736860641330,5.64,186.07,186.01,7.99391101]
[1736860641730,8.3284,186.07,186.02,2.6889]
[1736860641930,8.3284,186.07,186.01,7.99391101]
[1736860642732,8.3284,186.07,186.03,2.6888]
[1736860643833,14.55730576,186.07,186.03,2.6888]
[1736860644531,11.86890576,186.07,186.01,7.99391101]
[1736860644732,5.64,186.07,186.01,7.99391101]
[1736860645930,5.64,186.07,186.05,2.6885]
[1736860647834,5.64,186.07,186.06,2.6885]
[1736860648529,6.23027487,186.08,186.07,2.6883]
[1736860648729,8.0249,186.12,186.07,7.99391101]
[1736860649433,14.25652578,186.12,186.07,7.99391101]
[1736860649732,8.61652578,186.12,186.09,2.6879]
[1736860650429,8.61652578,186.12,186.0,7.6941]
[1736860650430,19.29803679,186.12,186.08,2.6882]
[1736860650634,7.99391101,186.1,186.04,7.99391101]
[1736860650830,7.99391101,186.08,185.99,2.3511]
[1736860651029,2.3849,186.12,185.99,2.3511]
[1736860651030,7.99391101,186.06,185.99,2.3511]
[1736860651228,7.99391101,186.06,186.0,7.99391101]
[1736860651429,10.68251101,186.06,186.02,2.6889]
[1736860651624,13.63391101,186.06,186.02,2.6889]
[1736860653231,2.6887,186.05,186.02,2.6889]
[1736860654439,7.99391101,186.04,185.95,2.3297]
[1736860654637,7.99391101,186.02,185.96,7.99391101]
[1736860655232,7.99391101,186.02,185.97,2.6897]
[1736860655738,2.6892,186.01,185.97,2.6897]
[1736860656436,10.68301101,186.02,185.98,2.6895]
[1736860657031,435.0,185.98,185.88,17.69459613]
[1736860657237,7.99391101,185.9,185.88,17.69459613]
[1736860657433,5.64,185.89,185.88,17.69459613]
[1736860657632,2.6906,185.92,185.88,17.69459613]
[1736860657937,5.64,185.92,185.9,7.99391101]
[1736860659341,5.64,185.92,185.89,2.6909]
[1736860659933,5.64,185.92,185.87,12.50784713]
[1736860661132,5.64,185.92,185.9,2.6907]
[1736860661447,5.64,185.92,185.87,12.50784713]
[1736860661745,5.64,185.92,185.91,2.6906]
[1736860663734,5.64,185.92,185.86,2.3061]
[1736860665242,5.64,185.92,185.91,2.6906]
[1736860666142,5.64,185.95,185.92,2.6905]
[1736860679355,13.64601379,185.95,185.92,2.6905]
[1736860679853,13.64601379,185.95,185.9,2.6907]
[1736860680255,13.64601379,185.95,185.88,8.00601379]
[1736860680455,16.33611379,185.95,185.91,2.6906]
[1736860680654,13.64601379,185.95,185.87,8.00601379]
[1736860680852,8.00601379,185.93,185.86,2.3061]
[1736860681055,8.00601379,185.87,185.74,5.3862]
[1736860681255,8.00601379,185.85,185.78,8.00601379]
[1736860681455,8.00601379,185.85,185.82,2.6919]
[1736860681658,8.00601379,185.85,185.78,8.00601379]
[1736860682156,8.00601379,185.85,185.75,2.2576]
[1736860682356,8.00601379,185.83,185.77,8.00601379]
[1736860682558,5.64,185.87,185.75,10.26361379]
[1736860682559,8.00601379,185.81,185.75,10.26361379]
[1736860682851,8.00601379,185.81,185.77,2.6927]
[1736860683460,10.69811379,185.81,185.77,2.6927]
[1736860684459,10.69811379,185.81,185.76,2.6928]
[1736860684760,8.00601379,185.79,185.76,2.6928]
[1736860685059,8.00601379,185.79,185.73,4.3662]
[1736860685256,8.00601379,185.77,185.71,4.59731586]
[1736860685461,8.00601379,185.75,185.63,4.5427]
[1736860685760,5.64,185.8,185.69,8.00601379]
[1736860685761,8.00601379,185.77,185.69,8.00601379]
[1736860686360,8.00601379,185.77,185.73,2.6932]
[1736860686561,8.00601379,185.79,185.64,2.375]
[1736860686759,8.00601379,185.79,185.71,8.00601379]
[1736860687261,8.00601379,185.77,185.71,8.00601379]
[1736860687458,2.6927,185.77,185.72,2.6933]
[1736860687663,8.00601379,185.78,185.71,8.00601379]
[1736860687863,8.00601379,185.78,185.73,8.00601379]
[1736860688260,8.00601379,185.78,185.74,2.6931]
[1736860688462,5.64,185.8,185.75,8.00601379]
[1736860688754,5.64,185.8,185.64,2.375]
[1736860688959,8.00601379,185.79,185.73,8.00601379]
[1736860689160,8.00601379,185.79,185.64,2.375]
[1736860689366,8.00601379,185.79,185.72,8.00601379]
[1736860690157,10.69851379,185.79,185.64,2.375]
[1736860690364,8.00601379,185.77,185.71,8.00601379]
[1736860691060,2.6926,185.78,185.73,8.00601379]
[1736860691261,8.00601379,185.79,185.73,8.00601379]
[1736860692066,8.00601379,185.79,185.75,2.6929]
[1736860693070,8.3323,185.8,185.75,10.69891379]
[1736860693270,5.64,185.8,185.76,2.6928]
[1736860693469,8.00601379,185.79,185.76,2.6928]
[1736860693678,8.00601379,185.79,185.73,8.00601379]
[1736860693971,8.00601379,185.79,185.75,2.6929]
[1736860695471,10.69841379,185.79,185.75,2.6929]
[1736860698577,8.00601379,185.77,185.75,2.6929]
[1736860698774,8.00601379,185.77,185.74,2.6931]
[1736860699178,10.69841379,185.79,185.74,2.6931]
[1736860700170,8.00601379,185.77,185.74,2.6931]
[1736860703380,8.00601379,185.77,185.71,8.00601379]
[1736860703574,8.00601379,185.77,185.73,8.00601379]
[1736860703879,8.00601379,185.79,185.73,8.00601379]
[1736860704480,8.00601379,185.79,185.75,2.6928]
[1736860704678,10.69841379,185.79,185.75,2.6928]
[1736860706378,5.64,185.8,185.75,8.00601379]
[1736860706873,191.0,185.84,185.75,8.00601379]
[1736860707075,5.64,185.83,185.79,8.00601379]
[1736860708083,10.69731379,185.87,185.82,2.6918]
[1736860708273,10.69731379,185.87,185.81,8.00601379]
[1736860708274,5.64,185.86,185.81,8.00601379]
[1736860708678,5.64,185.86,185.85,2.6915]
[1736860709589,8.00601379,185.9,185.86,2.6914]
[1736860709882,5.64,185.89,185.86,2.6914]
[1736860710276,8.00601379,185.9,185.86,2.6914]
[1736860710483,13.64601379,185.9,185.86,2.6914]
[1736860710881,2.6909,185.89,185.85,2.6915]
[1736860711083,8.00601379,185.88,185.82,10.26671379]
[1736860711779,10.69711379,185.88,185.83,2.6917]
[1736860711979,8.00601379,185.88,185.82,10.26671379]
[1736860712279,13.64601379,185.9,185.84,8.00601379]
[1736860712680,5.64,185.9,185.86,2.6913]
[1736860712876,5.64,185.9,185.84,8.00601379]
[1736860713079,5.64,185.9,185.83,4.5363]
[1736860713382,5.64,185.9,185.86,2.6913]
[1736860714176,5.64,185.9,185.87,2.6911]
[1736860714784,8.00601379,185.91,185.87,2.6911]
[1736860714987,13.64601379,185.91,185.87,2.6911]
[1736860715289,13.64601379,185.91,185.88,2.691]
[1736860716186,8.00601379,185.91,185.88,2.691]
[1736860716686,5.64,185.95,185.88,8.00601379]
[1736860717284,10.69601379,185.96,185.91,2.6906]
[1736860717482,10.69601379,185.96,185.88,8.00601379]
[1736860717483,5.64,185.95,185.88,8.00601379]
[1736860717677,5.64,185.95,185.9,8.00601379]
[1736860717879,10.69561379,185.98,185.94,2.6902]
[1736860718077,16.33561379,185.98,185.94,2.6902]
[1736860719183,13.64601379,185.98,185.94,2.6902]
[1736860720481,5.64,185.98,185.94,2.6902]
[1736860721487,5.64,185.98,185.95,2.6901]
[1736860722090,8.00601379,185.99,185.94,8.00601379]
[1736860722289,8.3294,186.0,185.96,2.6899]
[1736860722984,5.3763,186.09,185.96,8.00601379]
[1736860723188,2.6891,186.02,185.98,8.00601379]
[1736860723489,2.6891,186.02,185.92,4.5617]
[1736860723490,8.00601379,186.02,185.96,8.00601379]
[1736860723690,2.6892,186.01,185.96,10.69581379]
[1736860724985,2.6892,186.01,185.97,2.6897]
[1736860725185,10.69511379,186.02,185.97,2.6897]
[1736860725982,10.69511379,186.02,185.98,2.6896]
[1736860727091,10.69511379,186.02,185.96,8.00601379]
[1736860727288,10.69511379,186.02,185.97,2.6897]
[1736860728092,10.69511379,186.02,185.96,8.00601379]
[1736860728287,5.64,186.03,185.99,2.6894]
[1736860728893,1.5701,186.12,186.0,8.00601379]
[1736860729087,8.00601379,186.05,186.0,10.69521379]
[1736860729291,5.64,186.04,186.0,10.69521379]
[1736860729886,5.64,186.04,186.0,2.6892]
[1736860730086,8.3288,186.04,186.0,2.6892]
[1736860730594,5.64,186.04,186.01,2.6892]
[1736860730788,8.00601379,186.05,186.01,2.6892]
[1736860731092,13.64601379,186.05,186.01,2.6892]
[1736860732090,16.33461379,186.05,186.01,2.6892]
[1736860732291,16.33461379,186.05,186.02,2.689]
[1736860732292,13.64601379,186.05,186.02,2.689]
[1736860733188,13.64601379,186.05,186.01,10.69521379]
[1736860733894,13.64601379,186.05,186.02,2.689]
[1736860735697,5.64,186.05,186.02,2.689]
[1736860736397,8.0594,186.21,186.03,8.00601379]
[1736860736704,8.00601379,186.1,186.05,8.00601379]
[1736860736994,13.64601379,186.12,186.05,8.00601379]
[1736860737194,13.64601379,186.12,186.07,10.69421379]
[1736860737195,2.6878,186.11,186.07,10.69421379]
[1736860737395,8.00601379,186.12,186.07,8.00601379]
[1736860737694,5.64,186.13,186.09,8.00601379]
[1736860737996,190.39810434,186.26,186.09,8.00601379]
[1736860738195,1.5707,186.24,186.11,2.6877]
[1736860738397,8.00601379,186.16,186.11,2.6877]
[1736860738592,10.69341379,186.14,186.08,2.6881]
[1736860738794,10.69341379,186.14,186.07,8.00601379]
[1736860740193,10.69341379,186.14,186.09,2.6879]
[1736860741000,10.69341379,186.14,186.09,10.69391379]
[1736860741398,10.69341379,186.14,186.09,8.00601379]
[1736860741699,10.69341379,186.14,186.1,2.6879]
[1736860742801,2.6874,186.14,186.1,2.6879]
[1736860743390,2.6876,186.12,186.04,2.6887]
[1736860743604,8.00601379,186.15,186.09,8.00601379]
[1736860744795,2.6873,186.14,186.09,8.00601379]
[1736860745001,2.6873,186.14,186.1,8.00601379]
[1736860745195,2.6876,186.13,186.09,10.69401379]
[1736860745402,13.64601379,186.15,186.09,8.00601379]
[1736860745603,8.00601379,186.13,186.07,8.00601379]
[1736860746003,2.6878,186.11,186.08,2.6882]
[1736860746505,2.6878,186.11,186.09,8.00601379]
[1736860747400,13.64601379,186.15,186.09,8.00601379]
[1736860747605,2.6877,186.12,186.09,10.69401379]
[1736860748197,13.64601379,186.15,186.09,8.00601379]
[1736860749106,13.64601379,186.15,186.09,10.69401379]
[1736860749107,2.6876,186.12,186.09,10.69401379]
[1736860750904,8.00601379,186.13,186.07,8.00601379]
[1736860751104,8.00601379,186.09,186.0,38.86272768]
[1736860751311,8.00601379,186.09,186.02,8.00601379]
[1736860751312,5.64,186.08,186.02,8.00601379]
[1736860751499,8.00601379,186.07,186.02,8.00601379]
[1736860752202,2.6886,186.06,186.03,2.6888]
[1736860753106,5.64,186.08,186.04,8.00601379]
[1736860753407,5.64,186.08,186.06,8.00601379]
[1736860754005,5.64,186.08,186.07,2.6883]
[1736860754512,4.17421716,186.08,186.07,2.6883]
[1736860754809,2.6875,186.13,186.1,2.6879]
[1736860755208,8.00601379,186.13,186.0,38.86272768]
[1736860755411,2.6877,186.12,186.08,2.6881]
[1736860756508,2.6875,186.13,186.09,8.00601379]
[1736860757011,5.64,186.14,186.1,2.6879]
[1736860757012,2.6874,186.14,186.1,2.6879]
[1736860757202,5.64,186.13,186.1,2.6879]
[1736860757813,8.3276,186.13,186.08,8.00601379]
[1736860758516,2.6876,186.12,186.08,10.69411379]
[1736860760414,10.69381379,186.11,186.07,2.6883]
[1736860760612,8.00601379,186.11,186.0,2.1609]
[1736860760805,2.6883,186.07,186.03,8.00601379]
[1736860761012,2.6883,186.07,186.02,8.00601379]
[1736860761208,8.00601379,186.09,186.02,8.00601379]
[1736860761415,2.6886,186.06,186.02,10.69501379]
[1736860762015,8.3286,186.06,186.02,10.69501379]
[1736860762209,5.64,186.06,186.02,8.00601379]
[1736860762409,5.64,186.06,186.04,8.00601379]
[1736860763017,5.64,186.06,186.04,2.6887]
[1736860763216,5.64,186.06,186.04,10.69471379]
[1736860766017,5.64,186.06,186.05,2.6886]
[1736860766620,5.64,186.06,186.04,2.6887]
[1736860767419,5.64,186.06,186.0,7.66319488]
[1736860767621,2.6886,186.05,186.02,2.689]
[1736860768010,5.64,186.06,186.01,8.00601379]
[1736860768217,5.64,186.06,186.03,8.00601379]
[1736860768814,5.64,186.06,186.04,2.6887]
[1736860769414,8.3286,186.06,186.02,10.69491379]
[1736860770110,8.3286,186.06,186.03,2.6888]
[1736860770813,8.3286,186.06,186.04,8.00601379]
[1736860771118,8.3286,186.06,186.03,2.6888]
[1736860773716,5.64,186.06,186.0,7.66319488]
[1736860773917,8.00601379,186.05,186.0,5.50229488]
[1736860774122,8.00601379,186.03,185.96,8.00601379]
[1736860774328,8.00601379,186.01,185.96,8.00601379]
[1736860774523,2.6894,186.0,185.97,2.6897]
[1736860774825,5.64,186.06,185.96,8.00601379]
[1736860774826,8.00601379,186.03,185.96,8.00601379]
[1736860775221,2.6892,186.01,185.93,2.3009]
[1736860775423,2.6892,186.01,185.96,8.00601379]
[1736860776222,2.6892,186.01,185.98,2.6896]
[1736860778524,2.6891,186.02,185.98,2.6896]
[1736860780225,5.64,186.06,185.93,2.3009]
[1736860780413,5.64,186.05,185.93,2.3009]
[1736860780620,13.64601379,186.05,185.97,8.00601379]
[1736860780819,8.00601379,186.03,185.98,2.6895]
[1736860781022,10.69501379,186.03,185.97,8.00601379]
[1736860781222,8.00601379,186.03,185.97,8.00601379]
[1736860781619,2.6892,186.02,185.98,2.6896]
[1736860783224,8.00601379,186.03,185.99,2.6895]
[1736860783426,10.69491379,186.03,185.99,2.6895]
[1736860783725,8.00601379,186.03,185.99,2.6895]
[1736860783921,2.6891,186.02,185.98,2.6895]
[1736860784121,8.3291,186.02,185.93,2.3009]
[1736860784324,8.3291,186.02,185.97,8.00601379]
[1736860784524,16.33511379,186.02,185.98,2.6895]
[1736860790129,8.3291,186.02,185.99,2.6895]
[1736860790630,8.00601379,186.01,185.91,2.3519]
[1736860790931,8.00601379,185.99,185.94,2.6901]
[1736860791330,2.6897,185.98,185.94,2.6901]
[1736860792039,8.00601379,185.97,185.88,5.50499111]
[1736860792331,8.00601379,185.95,185.91,2.6905]
[1736860792532,5.64,185.94,185.88,13.5110049]
[1736860792724,8.00601379,185.93,185.9,2.6908]
[1736860792930,8.00601379,185.93,185.88,5.50499111]
[1736860793131,8.00601379,185.91,185.87,4.619]
[1736860793435,10.69681379,185.91,185.88,2.6911]
[1736860793735,8.00601379,185.9,185.83,8.00601379]
[1736860794333,10.69681379,185.9,185.86,2.6914]
[1736860794728,8.00601379,185.9,185.82,8.00601379]
[1736860794935,2.6915,185.85,185.81,2.6921]
[1736860795134,8.00601379,185.84,185.78,7.0244]
[1736860795332,8.00601379,185.82,185.78,4.619]
[1736860795737,8.00601379,185.82,185.78,7.3115]
[1736860795934,2.6918,185.83,185.78,7.3115]
[1736860796139,8.00601379,185.84,185.78,12.62501379]
[1736860796637,8.00601379,185.84,185.8,2.6921]
[1736860798435,5.64,185.85,185.78,12.62501379]
[1736860798644,5.64,185.85,185.82,2.6918]
[1736860806549,5.64,185.84,185.82,2.6918]
[1736860810650,13.64601379,185.84,185.78,12.62501379]
[1736860810850,13.64601379,185.84,185.78,4.619]
[1736860811050,5.64,185.84,185.78,4.619]
[1736860811251,13.64601379,185.84,185.78,4.619]
[1736860811452,16.33771379,185.84,185.74,39.15279669]
[1736860811651,16.33771379,185.84,185.78,8.00601379]
[1736860812053,16.33771379,185.84,185.8,2.6921]
[1736860813660,13.64601379,185.84,185.79,2.6924]
[1736860815053,2.692,185.82,185.79,2.6924]
[1736860815251,13.64601379,185.84,185.76,8.00601379]
[1736860815454,13.64601379,185.84,185.8,2.6922]
[1736860815755,2.6919,185.83,185.8,2.6922]
[1736860816555,8.00601379,185.82,185.75,102.9966]
[1736860816755,2.6922,185.81,185.77,2.6926]
[1736860816956,8.00601379,185.82,185.77,2.6926]
[1736860817351,2.6923,185.8,185.77,2.6926]
[1736860819362,8.00601379,185.82,185.75,10.30261379]
[1736860819661,5.64,185.84,185.75,2.2966]
[1736860819864,5.64,185.84,185.75,10.30261379]
[1736860820059,2.6923,185.8,185.77,2.6927]
[1736860821763,8.00601379,185.81,185.71,2.3483]
[1736860821963,2.6924,185.79,185.74,8.00601379]
[1736860822766,2.6924,185.79,185.75,2.6928]
[1736860823265,10.69841379,185.79,185.75,2.6928]
[1736860823563,2.6925,185.78,185.75,2.6928]
[1736860823762,5.64,185.77,185.75,2.6928]
[1736860824152,5.64,185.77,185.74,8.00601379]
[1736860824457,5.64,185.77,185.76,2.6928]
[1736860828861,5.64,185.77,185.76,10.69881379]
[1736860829161,5.64,185.77,185.75,2.6929]
[1736860830161,5.64,185.77,185.76,2.6928]
[1736860831164,5.64,185.77,185.76,10.69881379]
[1736860834077,2.6921,185.82,185.79,2.6923]
[1736860834273,5.64,185.81,185.78,8.00601379]
[1736860834479,88.66843496,185.88,185.78,8.00601379]
[1736860834480,5.64,185.82,185.78,8.00601379]
[1736860835669,5.64,185.82,185.81,2.6921]
[1736860837280,13.64601379,185.82,185.79,2.6923]
[1736860837771,16.33801379,185.82,185.79,2.6923]
[1736860837971,13.64601379,185.82,185.8,2.6922]
[1736860840072,13.64601379,185.82,185.71,2.3483]
[1736860840267,16.33791379,185.82,185.75,8.00601379]
[1736860840865,16.33791379,185.82,185.79,2.6923]
[1736860842271,5.64,185.82,185.77,8.00601379]
[1736860842475,10.69771379,185.84,185.77,8.00601379]
[1736860842672,5.64,185.83,185.77,8.00601379]
[1736860843180,5.64,185.83,185.81,2.6921]
[1736860843878,13.64601379,185.84,185.82,2.6919]
[1736860844581,13.64601379,185.84,185.78,2.2636]
[1736860845175,8.3319,185.83,185.8,2.6922]
[1736860846181,10.69801379,185.82,185.79,2.6923]
[1736860849082,10.69801379,185.82,185.78,2.2636]
[1736860849282,8.3319,185.83,185.8,2.6922]
[1736860852179,8.3319,185.83,185.79,2.6923]
[1736860852487,8.00601379,185.81,185.79,2.6923]
[1736860853388,13.64601379,185.83,185.79,2.6923]
[1736860853681,2.692,185.82,185.79,2.6923]
[1736860858194,8.00601379,185.81,185.79,2.6923]
[1736860860289,8.00601379,185.81,185.74,2.2374]
[1736860860492,8.00601379,185.79,185.74,2.2374]
[1736860860995,2.6925,185.78,185.74,2.2374]
[1736860861787,2.6925,185.78,185.76,2.6928]
[1736860863696,10.69841379,185.79,185.77,2.6927]
[1736860864101,8.89054295,185.82,185.76,8.00601379]
[1736860864288,6.19854295,185.82,185.76,8.00601379]
[1736860864491,6.19854295,185.82,185.8,8.00601379]
[1736860864690,6.19854295,185.85,185.81,2.6921]
[1736860864887,6.19854295,185.85,185.8,8.00601379]
[1736860865289,94.46817434,185.86,185.81,2.3645]
[1736860865598,5.64,185.86,185.84,8.00601379]
[1736860865796,5.64,185.86,185.82,10.41851379]
[1736860866798,5.64,185.86,185.84,2.6915]
[1736860867002,16.33711379,185.88,185.84,10.69751379]
[1736860867192,16.33711379,185.88,185.84,8.00601379]
[1736860868100,16.33711379,185.88,185.85,2.6914]
[1736860868501,5.64,185.88,185.85,2.6914]
[1736860868698,8.00601379,185.9,185.84,8.00601379]
[1736860868896,5.64,185.9,185.88,2.691]
[1736860869798,5.64,185.9,185.87,2.6912]
[1736860869997,8.88579019,185.91,185.87,2.6912]
[1736860870199,5.64,185.9,185.86,8.00601379]
[1736860870602,5.64,185.9,185.87,2.6912]
[1736860871491,5.64,185.9,185.86,8.00601379]
[1736860871696,5.64,185.9,185.88,2.6911]
[1736860872092,5.64,185.9,185.88,10.69711379]
[1736860872499,8.3306,185.92,185.88,10.69711379]
[1736860872906,5.64,185.93,185.9,2.6907]
[1736860873204,5.64,185.93,185.88,8.00601379]
[1736860873405,5.64,185.93,185.91,2.6906]
[1736860873706,5.64,185.93,185.82,4.7364]
[1736860873900,8.00601379,185.92,185.85,8.00601379]
[1736860874102,8.00601379,185.9,185.87,2.6912]
[1736860875803,10.69681379,185.9,185.86,2.6913]
[1736860876106,8.00601379,185.88,185.82,4.7364]
[1736860877105,10.69741379,185.86,185.82,7.4283]
[1736860877309,10.69741379,185.86,185.82,4.7364]
[1736860878012,2.6913,185.87,185.83,2.6918]
[1736860878210,8.00601379,185.88,185.82,12.74241379]
[1736860878508,8.00601379,185.88,185.85,2.6914]
[1736860878714,2.691,185.89,185.82,12.74241379]
[1736860879012,8.00601379,185.9,185.82,12.74241379]
[1736860879511,8.00601379,185.9,185.84,8.00601379]
[1736860879906,8.00601379,185.9,185.86,2.6912]
[1736860882918,10.69681379,185.9,185.86,2.6912]
[1736860883616,16.33681379,185.9,185.86,2.6912]
[1736860887523,13.64601379,185.9,185.86,2.6912]
[1736860887823,2.691,185.89,185.82,12.74241379]
[1736860888026,2.691,185.89,185.84,8.00601379]
[1736860888625,2.691,185.89,185.84,2.6916]